Cogmind - Beta 12 @@@ ROGUE MODE // 2024.02.21 @ 01:22:03 Player: Six of Ten Result: Destroyed by S-10 Pest with Light Assault Rifle Performance ------------- Evolutions (0) 0 Regions Visited (4) 800 Robots Destroyed (5) 25 Value Destroyed (72) 72 Prototype IDs (1) 20 Alien Tech Used (0) 0 Bonus (0) 0 TOTAL SCORE: 917 Bonus ------- None Cogmind --------- Core Integrity 0/250 Matter 300/300 Energy 100/100 System Corruption 0% Temperature Cool (0) Movement Rolling (80) Location -9/Mines Parts ------- > --- POWER (1) -------- (None) > --- PROPULSION (2) --- Light Treads Wheel > --- UTILITY (2) ------ Small Storage Unit > --- WEAPON (2) ------- (None) > --- INVENTORY (8) ---- Ion Engine Light Treads Compact Wheel Medium Matter Pod (0) Experimental Sensor Array Peak State ------------ > --- POWER ------------ Light Ion Engine > --- PROPULSION ------- Aluminum Leg Aluminum Leg > --- UTILITY ---------- Small Storage Unit Experimental Sensor Array > --- WEAPON ----------- Medium Laser Assault Rifle > --- INVENTORY -------- Ion Engine Light Treads Light Treads Wheel Compact Wheel Small Matter Pod Medium Matter Pod EM Pulse Gun [Rating: 15] Favorites ----------- Power Light Ion Engine Engine Light Ion Engine Propulsion Aluminum Leg Treads Light Treads Leg Aluminum Leg Wheel Wheel Utility Small Storage Unit Device Experimental Sensor Array Storage Small Storage Unit Weapon Medium Laser Energy Gun Medium Laser Ballistic Gun Assault Rifle Build | -11 -10 -10 -10 -9 ------- Run | Jun Mat Min Exi Min Slots Evolved . | . . . . . Power . | . . . . . Propulsion . | . . . . . Utility . | . . . . . Weapon . | . . . . . Parts Attached 16 | 7 2 2 1 4 Power 1 | 1 . . . . Engine 1 | 1 . . . . Core . | . . . . . Reactor . | . . . . . Propulsion 4 | 2 . . . 2 Treads 1 | . . . . 1 Leg 2 | 2 . . . . Wheel 1 | . . . . 1 Hover . | . . . . . Flight . | . . . . . Utility 6 | 1 2 2 1 . Device 1 | . . 1 . . Storage 5 | 1 2 1 1 . Processor . | . . . . . Hackware . | . . . . . Protection . | . . . . . Artifact . | . . . . . Weapon 5 | 3 . . . 2 Energy Gun 3 | 2 . . . 1 Energy Cannon . | . . . . . Ballistic Gun 2 | 1 . . . 1 Ballistic Cannon . | . . . . . Launcher . | . . . . . Special Weapon . | . . . . . Impact Weapon . | . . . . . Slashing Weapon . | . . . . . Piercing Weapon . | . . . . . Special Melee Weapon . | . . . . . Unidentified Prototypes 1 | . . 1 . . Parts Lost 7 | . . . . 7 Power 1 | . . . . 1 Propulsion 2 | . . . . 2 Utility 1 | . . . . 1 Weapon 3 | . . . . 3 Highest Loss Streak 6 | . . . . 6 To Critical Strikes . | . . . . . Average Slot Usage (%) 95 | . 92 100 100 64 Engine 12 | . 14 14 14 3 Leg 26 | . 28 28 28 9 Wheel 1 | . . . . 10 Storage 26 | . 21 24 28 28 Energy Gun 13 | . 14 14 14 4 Ballistic Gun 12 | . 14 14 14 1 Naked Turns . | . . . . . Heaviest Build 16 | 12 14 14 16 16 Greatest Support 20 | 20 20 20 20 20 Greatest Overweight (x) 1 | 1 . . . 1 Average Overweight (x) . | . . . . . Largest Inventory Capacity 8 | 8 8 8 8 8 Average Capacity 7 | 7 8 8 8 8 Most Carried 8 | 6 7 8 8 8 Average Carried 7 | 2 6 7 8 5 Final Capacity 8 | 8 8 8 8 8 Final Carried 8 | 6 7 8 8 5 Class Distribution -------------------- 100% | Mutant Dominant Class ---------------- Mutant | -10/Materials Mutant | -10/Mines Mutant | -10/Exiles Mutant | -9/Mines Resources | -11 -10 -10 -10 -9 ----------- Run | Jun Mat Min Exi Min Matter Collected 500 | 207 . 63 230 . Remotely . | . . . . . Salvage Created 82 | . 41 41 . . Parts 8 | . 5 3 . . Haulers Intercepted . | . . . . . Recyclers Shooed . | . . . . . Parts Field Recycled . | . . . . . Retrieved Matter . | . . . . . Parts Self-Destructed . | . . . . . Prevented . | . . . . . Kills | -11 -10 -10 -10 -9 ------- Run | Jun Mat Min Exi Min Combat Hostiles Destroyed 3 | . . 3 . . Guns 3 | . . 3 . . Classes Destroyed 2 | . 1 1 . . Watcher 2 | . 2 . . . Swarmer 3 | . . 3 . . Best Kill Streak 3 | . 2 3 . . Combat Bots Only 3 | . . 3 . . Max Kills in Single Turn 1 | . 1 1 . . Gunslinging . | . . . . . Exploded . | . . . . . Melee . | . . . . . Uniques/NPCs Destroyed . | . . . . . Combat | -11 -10 -10 -10 -9 -------- Run | Jun Mat Min Exi Min Damage Taken 1024 | . . 168 . 856 Core 255 | . . 40 . 215 Absorbed by Shields . | . . . . . Core Remaining (%) 100 | 100 . . . . Volleys Fired 19 | . 2 8 . 9 Largest 2 | . 2 2 . 2 Hottest 90 | . 70 70 . 90 Shots Fired 34 | . 4 16 . 14 Gun 34 | . 4 16 . 14 Cannon . | . . . . . Launcher . | . . . . . Special . | . . . . . Kinetic 14 | . 2 8 . 4 Thermal 15 | . 2 8 . 5 Explosive . | . . . . . Electromagnetic 5 | . . . . 5 Robot Hit Streak 4 | . 1 2 . 4 Robot Miss Streak 5 | . 1 3 . 5 Penetration Max . | . . . . . Secondary Targets 1 | . . 1 . . Max Gunslinging Chain 1 | . . 1 . . Shots Hit Robots 15 | . 2 6 . 7 Core Hits 6 | . 2 3 . 1 Critical Kills . | . . . . . Critical Parts Destroyed . | . . . . . Critical Strikes . | . . . . . Melee Attacks . | . . . . . Impact . | . . . . . Slashing . | . . . . . Piercing . | . . . . . Sneak Attacks . | . . . . . Combat Hostiles . | . . . . . Follow-up Attacks . | . . . . . Damage Inflicted 220 | . 24 88 . 108 Guns 208 | . 24 88 . 96 Cannons . | . . . . . Explosions . | . . . . . Melee . | . . . . . Ramming 12 | . . . . 12 Kinetic 66 | . 12 26 . 28 Thermal 111 | . 12 62 . 37 Explosive . | . . . . . Electromagnetic 31 | . . . . 31 Impact . | . . . . . Slashing . | . . . . . Piercing . | . . . . . Highest Corruption . | . . . . . Average Corruption . | . . . . . Corruption Purged . | . . . . . Corruption Blocked . | . . . . . Overload Shots . | . . . . . Overflow Damage . | . . . . . Projectiles . | . . . . . Explosions . | . . . . . Melee . | . . . . . Knockbacks . | . . . . . Impact . | . . . . . Kinetic . | . . . . . Secondary . | . . . . . Self-Inflicted Damage 4 | . . . . 4 Shots . | . . . . . Rammed 6 | . . . . 6 Targets Rammed 6 | . . . . 6 Kicked . | . . . . . Crushed . | . . . . . Highest Temperature 72 | . 9 72 . 70 Average Temperature 30 | . 6 37 . 29 Received Heat Transfer 96 | . . . . 96 Siege Activations . | . . . . . Robots Corrupted . | . . . . . Combat Hostiles . | . . . . . Parts Fried . | . . . . . Impact Corruptions . | . . . . . Robots Melted . | . . . . . Combat Hostiles . | . . . . . Parts Melted 1 | . . 1 . . Heat Transferred 333 | . 37 185 . 111 Parts Sabotaged . | . . . . . Parts Stolen . | . . . . . Parts Stripped . | . . . . . Power Chain Reactions . | . . . . . Missiles Intercepted . | . . . . . Alert | -11 -10 -10 -10 -9 ------- Run | Jun Mat Min Exi Min Peak Influence 120 | . 59 92 . 120 Initial 22 | . . 22 . . Average 62 | . 21 88 . 53 Maximum Alert Level . | . . . . . Low Security (%) 100 | 100 100 100 . 100 Level 1 . | . . . . . Level 2 . | . . . . . Level 3 . | . . . . . Level 4 . | . . . . . Level 5 . | . . . . . High Security . | . . . . . Max Security . | . . . . . Squads Dispatched . | . . . . . Investigation . | . . . . . Extermination . | . . . . . Reinforcement . | . . . . . Assault . | . . . . . Garrison . | . . . . . Intercept . | . . . . . Searches Triggered . | . . . . . Construction Impeded . | . . . . . Haulers Reinforced . | . . . . . Active Scanning Responses . | . . . . . Cargo Convoy Interrupts . | . . . . . Stealth | -11 -10 -10 -10 -9 --------- Run | Jun Mat Min Exi Min Distress Signals . | . . . . . Communications Jammed . | . . . . . Distress Signals . | . . . . . Times Spotted 18 | . 2 3 . 13 Peak Tracking Total 6 | . 2 3 . 6 Tactical Retreats 3 | . . . . 3 Traps | -11 -10 -10 -10 -9 ------- Run | Jun Mat Min Exi Min Traps Triggered . | . . . . . Indirectly . | . . . . . Trap Hack Attempts . | . . . . . Triggered . | . . . . . Disarmed . | . . . . . Reprogrammed . | . . . . . Reused . | . . . . . Traps Extracted . | . . . . . Installed . | . . . . . Triggered . | . . . . . Machines | -11 -10 -10 -10 -9 ---------- Run | Jun Mat Min Exi Min Machines Disabled 1 | . 1 . . . Max in Single Turn 1 | . 1 . . . Machines Repaired . | . . . . . Machines Sabotaged . | . . . . . Overloaded Fab Kills . | . . . . . Hacking | -11 -10 -10 -10 -9 --------- Run | Jun Mat Min Exi Min Machines Accessed 4 | . . . 4 . Terminals . | . . . . . Fabricators . | . . . . . Repair Stations . | . . . . . Recycling Units . | . . . . . Scanalyzers . | . . . . . Garrison Access . | . . . . . Total Hacks 4 | . . . 4 . Successful 4 | . . . 4 . Failed . | . . . . . Catastrophic . | . . . . . Database Lockouts . | . . . . . Manual . | . . . . . Terminals . | . . . . . Fabricators . | . . . . . Repair Stations . | . . . . . Recycling Units . | . . . . . Scanalyzers . | . . . . . Garrison Access . | . . . . . Terminal Hacks 4 | . . . 4 . Record 4 | . . . 4 . Fabricator Hacks . | . . . . . Repair Station Hacks . | . . . . . Recycling Unit Hacks . | . . . . . Scanalyzer . | . . . . . Garrison Access Hacks . | . . . . . Unauthorized Hacks . | . . . . . Terminals . | . . . . . Fabricators . | . . . . . Repair Stations . | . . . . . Recycling Units . | . . . . . Scanalyzers . | . . . . . Garrison Access . | . . . . . Data Cores Recovered . | . . . . . Used . | . . . . . Hacking Detections . | . . . . . Full Trace Events . | . . . . . Feedback Events . | . . . . . Feedback Blocked . | . . . . . Robot Schematics Acquired . | . . . . . Robots Built . | . . . . . Authchips . | . . . . . Time . | . . . . . Total Robot Build Rating . | . . . . . Part Schematics Acquired . | . . . . . Parts Built . | . . . . . Authchips . | . . . . . Time . | . . . . . Total Part Build Rating . | . . . . . Parts Repaired . | . . . . . Time . | . . . . . Parts Recycled . | . . . . . Recycled Matter . | . . . . . Retrieved Matter . | . . . . . Retrieved Components . | . . . . . Parts Scanalyzed . | . . . . . Part Schematics Acquired . | . . . . . Parts Damaged . | . . . . . Bothacking | -11 -10 -10 -10 -9 ------------ Run | Jun Mat Min Exi Min Used RIF Installer . | . . . . . Robots Hacked . | . . . . . Non-combat . | . . . . . Combat . | . . . . . Robot Hacks Applied . | . . . . . Relay Couplers Released . | . . . . . Fabnet Peak Effective % . | . . . . . Robots Rewired . | . . . . . Allies Hacked . | . . . . . Hacks Repelled . | . . . . . Allies | -11 -10 -10 -10 -9 -------- Run | Jun Mat Min Exi Min Total Allies 2 | . . 2 . . Largest Group 2 | . . 2 2 . Highest-Rated Group 46 | . . 46 46 . Highest-Rated Ally 31 | . . 31 31 . Total Orders . | . . . . . Ally Attacks . | . . . . . Total Damage . | . . . . . Kills . | . . . . . Allies Corrupted . | . . . . . Allies Melted . | . . . . . Intel | -11 -10 -10 -10 -9 ------- Run | Jun Mat Min Exi Min Robot Analysis Total . | . . . . . Derelict Logs Recovered 1 | . . 1 . . Drone Launches . | . . . . . Drone Recoveries . | . . . . . Exploration | -11 -10 -10 -10 -9 ------------- Run | Jun Mat Min Exi Min Turns Passed 1205 | 63 103 356 561 122 Spaces Moved 944 | 44 69 257 467 107 Core 9 | 9 . . . . Treads . | . . . . . Legs 831 | 35 69 257 467 3 Wheels 104 | . . . . 104 Hover . | . . . . . Flight . | . . . . . Fastest Speed 50 | 50 120 120 120 80 Average Speed 115 | 107 120 120 120 81 Slowest Speed 120 | 120 120 120 120 120 Overloaded Moves . | . . . . . Propulsion Burnouts . | . . . . . Robots Hopped . | . . . . . Cave-ins Triggered . | . . . . . Exploration Rate (%) 38 | 3 19 49 91 30 Regions Visited 4 Branch Regions 3 Pre-discovered Areas . | . . . . . Known Exits Taken . | . . . . . Unknown Exits Taken 4 | 1 1 1 1 . Scrap Searched 1 | . . 1 . . Spaces Dug . | . . . . . Terrain Destroyed . | . . . . . Melee . | . . . . . Projectile . | . . . . . AOE . | . . . . . Terrain Rammed . | . . . . . Walls Destroyed . | . . . . . Machines Disabled . | . . . . . Actions | -11 -10 -10 -10 -9 --------- Run | Jun Mat Min Exi Min Total 1022 | 56 84 287 468 127 Wait 33 | . 12 20 . 1 Move 940 | 43 68 256 466 107 Hop . | . . . . . Pick Up 7 | 6 . 1 . . Fast Attach 8 | 6 1 . . 1 Attach 3 | . . . . 3 Detach . | . . . . . Swap 5 | 1 1 2 1 . Drop 1 | . . . 1 . Fire 19 | . 2 8 . 9 Melee . | . . . . . Ram 6 | . . . . 6 Kick . | . . . . . Crush . | . . . . . Escape Stasis . | . . . . . Rewire . | . . . . . Trap . | . . . . . Miscellaneous . | . . . . . Route ------- -11/Junkyard -10/Materials -10/Mines (discovered 2 exits: [*Mat] / *Exi) -10/Exiles -9/Mines History --------- Turn | Location | Event 9 | -11/Junkyard | Discovered new exit (range 16) 64 | -11/Junkyard | Entered Materials 154 | -10/Materials | Discovered new exit (range 8) 167 | -10/Materials | Entered Mines 299 | -10/Mines | Found a damaged Exp. Sensor Array with a note attached 302 | -10/Mines | Found Prototype Device 303 | -10/Mines | Identified Exp. Sensor Array 322 | -10/Mines | Learned Materials trap positions 324 | -10/Mines | Build established: Mutant 392 | -10/Mines | Discovered new exit (range 15) 422 | -10/Mines | Found a hidden stash of uninstalled traps 509 | -10/Mines | Deemed a non-threat by the Exiles lab entrance 510 | -10/Mines | Discovered new exit (range 5) 523 | -10/Mines | Entered Exiles 523 | -10/Exiles | Found Exiles lab abandoned 523 | -10/Exiles | Accompanied by 2 allies 553 | -10/Exiles | Led the pair of lost Derelicts to a safe place 1064 | -10/Exiles | Discovered new exit (range 14) 1084 | -10/Exiles | Entered Mines 1116 | -9/Mines | Core integrity fell below 50% 1164 | -9/Mines | Lost 6 parts (1p2n3w) 1194 | -9/Mines | Core integrity fell below 20% 1206 | -9/Mines | Destroyed by S-10 Pest with Light Assault Rifle Last Messages --------------- probably going to wreck your life and you're too stupid to see it coming. 01041_ Extracted 200 matter. 01042_ Dropped Sml. Matter Pod. 01043_ Extracted 30 matter. 01064_ EXIT=FOUND LOCATION=UNKNOWN GOAL=ESCAPE 01096_ Assault Rifle severed. 01100_ Med. Laser destroyed. 01113_ Aluminum Leg destroyed. 01113_ EM Pulse Gun destroyed. 01114_ Slammed into L-31 Rogue. 01115_ Lgt. Ion Engine destroyed. 01116_ Acquired Assault Rifle. 01118_ Assault Rifle destroyed. 01131_ T-07 Excavator is excavating. 01133_ Aluminum Leg destroyed. 01198_ Slammed into S-10 Pest. 01203_ Hcp. Matter Pod destroyed. Map ----- +----------------------------------------------------+ | ????????????????????????????????????????????? | | ?????????????????????????????????###????????? | | ????????????????????????????????? #????????? | | ?????????????????????????????????# #????????? | | ?????????????????????????????????# ###??????? | | ????????????????????????????###### ##?????? | | ???????????????????????????## ## ##????? | | ???????????????????????????# ##???? | | ???????????????????????????# #???? | | ???????????????????????????# """ ##??? | | ????????????????????????????# """ ##?? | | ????????????????????????????# ### """ #?? | | ????????????????????????????# #?## ##?? | | ????????????????????????????# #??### ####??? | | ????????????????????????????# #????# #?????? | | ????????????????????????????# #????# #?????? | | ????????????????????????????# #????# #?????? | | ????????????????????????????# #????# ##????? | | ????????????????????????##### #????# #????? | | ????????????????????????# #????## #????? | | ????????????????????????#s######?????# #????? | | ????????????????????????# #??????????# #????? | | ????????????????????????#t#??????????# #????? | | ???????????????????####?# #??????????# #????? | | ??????????????????## ### #??????????# #????? | | ??????????????????# ##@##?????????# #????? | | ?????????####?????# #####?????# #????? | | ?????????# ?????# ##????# #????? | | ?????????# ????# s #????# #????? | | ?????????# """????# ## #???# #????? | | ?????????# """ ??##ss ##?# #??# #????? | | ?????????# """ ### ####???# #??# ##???? | | ?????????# s ##???????## ##?## ##??? | | ?????????# """ ## s #??????????###??# ##?? | | ?????????# """ ?# ##??????????????# #?? | | ?????????# """??# #??????????????## #?? | | ?????????# ??## #???????????????# #?? | | ?????????####????## #####??#####????# ##?? | | ??????????????????# ? ??? #????## ##??? | | ????????????####### ### #????# ####### #???? | | ????????????? ### #????# #???? | | ????????????????# ## #????# #########???? | | ????#######?????# ##???# #???????????? | | ????# """ #????## #???# ###?????????? | | ????# """ ###### ### ##### ##????????? | | # ### """ ## ###?### #????????? | | # ## ## ##?????# #????? | | ????# ## ##??????# #??? | | ????# ########???????# ## ## #?? | | ????# #??????????????# ### ###?? #?? | +----------------------------------------------------+ Best States ------------- Heat Dissipation 25 Energy Generation 10 Energy Capacity 125 Matter Stores 420 Matter Capacity 500 Sight Range 16 Robot Scan Range 20 Terrain Scan Density 10 Evasion (%) 55 Item Schematics ----------------- None Robot Schematics ------------------ None Fabricated ------------ Nothing Alien Tech Used ----------------- None Achievements -------------- None Challenges ------------ None Game ------ Seed IonProcessingScreen Manual? 0 Play Time 00:10:20 Cumulative 31.2 hours Start 2024.02.19 @ 05:11:25 End 2024.02.21 @ 01:22:03 Sessions 3 Manual Loads 0 Difficulty Rogue Special Mode None Game No. 40 Rogue 40 Adventurer 0 Explorer 0 Win Type - Total 0 Types 0/0/0/0/0/0/0/0/0 Lore% 19 Gallery% 34 Achievement% 28 Wizard Run 0 Options --------- ASCII 1 Keyboard 0 Movement Numpad Keybinds 0 Fullscreen 2 Font 18/SmallcapsGlow Map View 76x50 Tactical HUD 1 Map Filters NONE Filters NONE Steam 1 RUN: 423f5822-1eb2-45ba-afd6-dddab87f2cb8